Workbook

Sheet Cover

Sheet Report
A2: Updated: October 26, 2015
A3: Revisions Noted in Bold
A4: Dynamically positioned «
L5: Dayrate on | M5: Dayrate on | O5: Estimated Out of Service Days (4) | T5: Estimated Out of Service Days (4)
E6: Yr. (1) | F6: Water | G6: Drilling | J6: Estimated | K6: Estimated | L6: Current | M6: Previous
B7: Footnote | C7: Floater | D7: Dynamically | E7: Entered | F7: Depth | G7: Depth | J7: Contract | K7: Expiration | L7: Contract (3) | M7: Contract (3) | O7: 2015 | T7: 2016
A8: Rig Type/Name | B8: References | C8: Type | D8: Positioned | E8: Service | F8: (Feet) | G8: (Feet) | H8: Location | I8: Customer | J8: Start Date (2) | K8: Date (2) | L8: (Dollars) | M8: (Dollars) | O8: Q1 | P8: Q2 | Q8: Q3 | R8: Q4 | T8: Q1 | U8: Q2 | V8: Q3 | W8: Q4
A10: Rigs Under Construction (12)
A12: Deepwater Thalassa | B12: (6), (11) | C12: ship | D12: « | E12: TBA | F12: 12000 | G12: 40000 | H12: USGOM | I12: Shell | J12: 2015-12-23 | K12: 2025-12-19 | L12: 519000 | M12: N/A
A13: Deepwater Proteus | B13: (6), (11) | C13: ship | D13: « | E13: TBA | F13: 12000 | G13: 40000 | H13: TBA | I13: Shell | J13: Q2 2016 | K13: Q2 2026 | L13: 519000 | M13: N/A
A14: Deepwater Pontus | B14: (6), (11) | C14: ship | D14: « | E14: TBA | F14: 12000 | G14: 40000 | H14: TBA | I14: Shell | J14: Q4 2017 | K14: Q4 2027 | L14: 519000 | M14: N/A
A15: Deepwater Poseidon | B15: (6), (11) | C15: ship | D15: « | E15: TBA | F15: 12000 | G15: 40000 | H15: TBA | I15: Shell | J15: Q1 2018 | K15: Q1 2028 | L15: 519000 | M15: N/A
A16: Deepwater Conqueror | B16: (6), (8), (11) | C16: ship | D16: « | E16: TBA | F16: 12000 | G16: 40000 | H16: USGOM | I16: Chevron | J16: Q4 2016 | K16: Q4 2021 | L16: 589000 | M16: N/A
A17: JSPL Ultra-Deepwater Drillship TBN 1 | B17: -9 | C17: ship | D17: « | E17: TBA | F17: 12000 | G17: 40000 | H17: TBA
A18: JSPL Ultra-Deepwater Drillship TBN 2 | B18: -9 | C18: ship | D18: « | E18: TBA | F18: 12000 | G18: 40000 | H18: TBA
A19: Transocean Cepheus | B19: -12 | E19: TBA | F19: 400 | G19: 35000 | H19: TBA
A20: Transocean Cassiopeia | B20: -12 | E20: TBA | F20: 400 | G20: 35000 | H20: TBA
A21: Transocean Centaurus | B21: -12 | E21: TBA | F21: 400 | G21: 35000 | H21: TBA
A22: Transocean Cetus | B22: -12 | E22: TBA | F22: 400 | G22: 35000 | H22: TBA
A23: Transocean Circinus | B23: -12 | E23: TBA | F23: 400 | G23: 35000 | H23: TBA
A25: Ultra-Deepwater (27)
A27: Deepwater Asgard | C27: ship | D27: « | E27: 2014 | F27: 12000 | G27: 40000 | H27: USGOM | I27: Chevron | J27: 2015-04-01 | K27: 2017-06-23 | L27: 623000 | M27: 600000 | O27: 0 | P27: 0 | Q27: 0 | R27: 0 | T27: 0 | U27: 0 | V27: 0 | W27: 0
A28: Deepwater Invictus | B28: (6), (17) | C28: ship | D28: « | E28: 2014 | F28: 12000 | G28: 40000 | H28: USGOM | I28: BHP Billiton | J28: 2014-07-28 | K28: 2017-03-26 | L28: 600000 | M28: N/A | O28: 0 | P28: 0 | Q28: 0 | R28: 0 | T28: 0 | U28: 0 | V28: 0 | W28: 0
A29: Discoverer Americas | B29: -6 | C29: ship | D29: « | E29: 2009 | F29: 12000 | G29: 40000 | H29: USGOM | I29: Statoil | J29: 2015-05-29 | K29: 2016-03-31 | L29: 590000 | M29: 735000 | O29: 0 | P29: 0 | Q29: 0 | R29: 0 | T29: 0 | U29: 0 | V29: 0 | W29: 0
A30: Deepwater Champion | C30: ship | D30: « | E30: 2011 | F30: 12000 | G30: 40000 | H30: USGOM | I30: ExxonMobil | J30: 2015-05-31 | K30: 2015-11-16 | L30: 670000 | M30: 708000 | O30: 0 | P30: 0 | Q30: 0 | R30: 0 | T30: 0 | U30: 0 | V30: 0 | W30: 0
H31: USGOM | I31: ExxonMobil | J31: 2015-11-16 | K31: 2016-01-31 | L31: 395000 | M31: 670000
A32: Discoverer Clear Leader | B32: (6), (8), (16) | C32: ship | D32: « | E32: 2009 | F32: 12000 | G32: 40000 | H32: USGOM | I32: Chevron | J32: 2014-11-01 | K32: 2018-10-01 | L32: 581000 | M32: 569000 | O32: 0 | P32: 0 | Q32: 0 | R32: 0 | T32: 0 | U32: 0 | V32: 0 | W32: 0
A33: Discoverer Inspiration | B33: (6), (8), (16) | C33: ship | D33: « | E33: 2010 | F33: 12000 | G33: 40000 | H33: USGOM | I33: Chevron | J33: 2015-03-30 | K33: 2020-03-31 | L33: 585000 | M33: 523000 | O33: 17.9375 | P33: 0 | Q33: 0 | R33: 0 | T33: 0 | U33: 0 | V33: 0 | W33: 0
A34: Dhirubhai Deepwater KG1 | B34: (6), (7), (8) | C34: ship | D34: « | E34: 2009 | F34: 12000 | G34: 35000 | H34: Brazil | I34: Petrobras | J34: 2014-12-31 | K34: 2017-12-01 | L34: 397000 | M34: 510000 | O34: 4.520833333 | P34: 0 | Q34: 0 | R34: 0 | T34: 14 | U34: 16 | V34: 0 | W34: 0
A35: Dhirubhai Deepwater KG2 | C35: ship | D35: « | E35: 2010 | F35: 12000 | G35: 35000 | H35: India | I35: Reliance | J35: 2015-08-06 | K35: 2015-10-31 | L35: 295000 | M35: 395000 | O35: 13.42708333 | P35: 0 | Q35: 0 | R35: 54 | T35: 0 | U35: 0 | V35: 0 | W35: 0
A36: Discoverer India | B36: -14 | C36: ship | D36: « | E36: 2010 | F36: 12000 | G36: 40000 | H36: USGOM | I36: Reliance | J36: 2013-09-01 | K36: 2016-09-01 | L36: 528000 | M36: 499000 | O36: 0 | P36: 16 | Q36: 0 | R36: 0 | T36: 0 | U36: 0 | V36: 0 | W36: 0
H37: India | I37: Reliance | J37: 2016-09-01 | K37: 2021-01-01 | L37: 508000 | M37: 528000
A38: Petrobras 10000 | B38: (6), (7), (8) | C38: ship | D38: « | E38: 2009 | F38: 12000 | G38: 37500 | H38: Brazil | I38: Petrobras | J38: 2011-02-01 | K38: 2019-08-17 | L38: 419000 | M38: N/A | O38: 0 | P38: 0 | Q38: 0 | R38: 0 | T38: 0 | U38: 0 | V38: 0 | W38: 0
A39: Discoverer Deep Seas | B39: -6 | C39: ship | D39: « | E39: 2001 | F39: 10000 | G39: 35000 | H39: USGOM | I39: Murphy Oil | J39: 2013-10-31 | K39: 2016-11-30 | L39: 604000 | M39: 456000 | O39: 0 | P39: 23 | Q39: 49 | R39: 0 | T39: 0 | U39: 0 | V39: 0 | W39: 0
A40: Discoverer Enterprise | C40: ship | D40: « | E40: 1999 | F40: 10000 | G40: 35000 | K40: Stacked | O40: 0 | P40: 0 | Q40: 0 | R40: 0 | T40: 0 | U40: 0 | V40: 0 | W40: 0
A41: Discoverer Spirit | C41: ship | D41: « | E41: 2000 | F41: 10000 | G41: 35000 | K41: Stacked | O41: 0 | P41: 0 | Q41: 0 | R41: 0 | T41: 0 | U41: 0 | V41: 0 | W41: 0
A42: GSF C.R. Luigs | C42: ship | D42: « | E42: 2000 | F42: 10000 | G42: 35000 | K42: Stacked | O42: 29 | P42: 0 | Q42: 0 | R42: 0 | T42: 0 | U42: 0 | V42: 0 | W42: 0
A43: GSF Jack Ryan | C43: ship | D43: « | E43: 2000 | F43: 10000 | G43: 35000 | K43: Stacked | O43: 0 | P43: 0 | Q43: 0 | R43: 0 | T43: 0 | U43: 0 | V43: 0 | W43: 0
A44: Deepwater Discovery | C44: ship | D44: « | E44: 2000 | F44: 10000 | G44: 30000 | K44: Stacked | O44: 0 | P44: 0 | Q44: 0 | R44: 0 | T44: 0 | U44: 0 | V44: 0 | W44: 0
A45: Deepwater Frontier | C45: ship | D45: « | E45: 1999 | F45: 10000 | G45: 30000 | K45: Idle | O45: 0 | P45: 0 | Q45: 0 | R45: 0 | T45: 0 | U45: 0 | V45: 0 | W45: 0
A46: Deepwater Millennium | B46: (7) | C46: ship | D46: « | E46: 1999 | F46: 10000 | G46: 30000 | H46: Korea | I46: Woodside | J46: 2015-09-01 | K46: 2015-11-20 | L46: 584000 | M46: 593000 | O46: 0 | P46: 0 | Q46: 0 | R46: 0 | T46: 0 | U46: 0 | V46: 0 | W46: 0
B47: (20) | H47: Myanmar | I47: Woodside | J47: =K46 -> 2015-11-20 | K47: 2016-04-23 | L47: =M46 -> 593000 | M47: =L46 -> 584000
A48: Deepwater Pathfinder | C48: ship | D48: « | E48: 1998 | F48: 10000 | G48: 30000 | K48: Stacked | O48: 0 | P48: 0 | Q48: 0 | R48: 0 | T48: 0 | U48: 0 | V48: 0 | W48: 0
A49: Cajun Express | B49: -19 | C49: semi | D49: « | E49: 2001 | F49: 8500 | G49: 35000 | H49: Ivory Coast | I49: CNR | J49: 2014-12-14 | K49: 2015-12-01 | L49: 495000 | M49: 487000 | O49: 13.61458333 | P49: 0 | Q49: 0 | R49: 0 | T49: 0 | U49: 0 | V49: 0 | W49: 0
A50: Deepwater Nautilus | B50: (6), (8) | C50: semi | E50: 2000 | F50: 8000 | G50: 30000 | H50: USGOM | I50: Shell | J50: 2012-08-01 | K50: 2017-08-01 | L50: 531000 | M50: 551000 | O50: 0 | P50: 60.54166667 | Q50: 92 | R50: 10 | T50: 0 | U50: 0 | V50: 0 | W50: 0
A51: Discoverer Luanda | B51: (6), (13) | C51: ship | D51: « | E51: 2010 | F51: 7500 | G51: 40000 | H51: Angola | I51: BP | J51: 2011-01-01 | K51: 2018-01-01 | L51: 487000 | M51: N/A | O51: 0 | P51: 9 | Q51: 0 | R51: 0 | T51: 0 | U51: 0 | V51: 0 | W51: 0
A52: GSF Development Driller I | B52: (7), (8) | C52: semi | D52: « | E52: 2005 | F52: 7500 | G52: 37500 | H52: Angola | I52: ExxonMobil | J52: 2015-06-02 | K52: 2016-06-16 | L52: 367000 | M52: N/A | O52: 90 | P52: 78 | Q52: 0 | R52: 0 | T52: 0 | U52: 0 | V52: 0 | W52: 0
B53: (7), (8) | H53: Angola | I53: ExxonMobil | J53: 2016-06-16 | K53: 2017-06-16 | L53: 371000 | M53: =L52 -> 367000
A54: GSF Development Driller II | B54: -8 | C54: semi | D54: « | E54: 2005 | F54: 7500 | G54: 37500 | H54: Romania | I54: Lukoil | J54: 2015-05-01 | K54: 2016-01-01 | L54: 315000 | M54: 355000 | O54: 0 | P54: 0 | Q54: 0 | R54: 0 | T54: 0 | U54: 0 | V54: 0 | W54: 0
A55: Development Driller III | B55: (6), (16) | C55: semi | D55: « | E55: 2009 | F55: 7500 | G55: 37500 | H55: USGOM | I55: BP | J55: 2009-11-01 | K55: 2016-11-01 | L55: 422000 | M55: N/A | O55: 0 | P55: 0 | Q55: 0 | R55: 0 | T55: 0 | U55: 0 | V55: 0 | W55: 0
A56: Sedco Energy | C56: semi | D56: « | E56: 2001 | F56: 7500 | G56: 35000 | K56: Stacked | O56: 0 | P56: 0 | Q56: 0 | R56: 0 | T56: 0 | U56: 0 | V56: 0 | W56: 0
A57: Sedco Express | C57: semi | D57: « | E57: 2001 | F57: 7500 | G57: 35000 | K57: Stacked | O57: 0 | P57: 0 | Q57: 0 | R57: 0 | T57: 0 | U57: 0 | V57: 0 | W57: 0
M59: Total Estimated Days Out of Service | O59: =SUM(O27:O57) -> 168.5 | P59: =SUM(P27:P57) -> 186.5416667 | Q59: =SUM(Q27:Q57) -> 141 | R59: =SUM(R27:R57) -> 64 | T59: =SUM(T27:T57) -> 14 | U59: =SUM(U27:U57) -> 16 | V59: =SUM(V27:V57) -> 0 | W59: =SUM(W27:W57) -> 0
M60: Estimated Average Contract Dayrate(5) | O60: 511000 | P60: 512000 | Q60: 514000 | R60: 496000 | T60: 512000 | U60: 515000 | V60: 513000 | W60: 514000
A62: Harsh Environment (7)
A64: Transocean Barents | C64: semi | D64: « | E64: 2009 | F64: 10000 | G64: 30000 | K64: Idle | O64: 0 | P64: 0 | Q64: 0 | R64: 0 | T64: 0 | U64: 0 | V64: 0 | W64: 0
A65: Transocean Spitsbergen | C65: semi | D65: « | E65: 2010 | F65: 10000 | G65: 30000 | K65: Idle | O65: 42.38541667 | P65: 0 | Q65: 0 | R65: 0 | T65: 0 | U65: 0 | V65: 0 | W65: 0
B66: (6), (7), (21) | H66: NNS | I66: OMV | J66: 2016-01-01 | K66: 2016-03-31 | L66: 471000 | M66: N/A
A67: Henry Goodrich | C67: semi | E67: 1985/2007 | F67: 5000 | G67: 30000 | K67: Stacked | O67: 0 | P67: 0 | Q67: 0 | R67: 0 | T67: 0 | U67: 0 | V67: 0 | W67: 0
A68: Transocean Leader | C68: semi | E68: 1987/1997 | F68: 4500 | G68: 25000 | H68: UKNS | I68: Enquest | J68: 2015-05-18 | K68: 2018-05-17 | L68: 335000 | M68: 377000 | O68: 45.97916667 | P68: 17 | Q68: 0 | R68: 0 | T68: 0 | U68: 0 | V68: 0 | W68: 0
B69: (18) | H69: UKNS | I69: Enquest | J69: 2018-05-18 | K69: 2019-05-17 | L69: 305000 | M69: 335000
A70: Paul B. Loyd, Jr. | B70: -7 | C70: semi | E70: 1990 | F70: 2000 | G70: 25000 | H70: UKNS | I70: BP | J70: 2015-11-20 | K70: 2016-03-17 | L70: 435000 | M70: 433000 | O70: 0 | P70: 0 | Q70: 20 | R70: 72 | T70: 0 | U70: 0 | V70: 0 | W70: 0
B71: -7 | H71: UKNS | I71: BP | J71: 2016-03-01 | K71: 2016-09-01 | L71: 442000 | M71: =L70 -> 435000
B72: -7 | H72: UKNS | I72: BP | J72: 2016-09-01 | K72: 2017-03-01 | L72: 449000 | M72: =L71 -> 442000
B73: -7 | H73: UKNS | I73: BP | J73: 2017-03-01 | K73: 2017-06-01 | L73: 455000 | M73: =L72 -> 449000
A74: Transocean Arctic | B74: (6), (7), (21) | C74: semi | E74: 1986 | F74: 1650 | G74: 25000 | H74: NNS | I74: Rig Management Norway | J74: 2014-07-31 | K74: 2016-03-31 | L74: 373000 | M74: 414000 | O74: 0 | P74: 0 | Q74: 0 | R74: 0 | T74: 0 | U74: 0 | V74: 0 | W74: 0
A75: Polar Pioneer | B75: -6 | C75: semi | E75: 1985 | F75: 1500 | G75: 25000 | H75: Alaska | I75: Shell | J75: 2015-10-25 | K75: 2015-12-31 | L75: 561000 | M75: 624000 | O75: 0 | P75: 0 | Q75: 0 | R75: 0 | T75: 0 | U75: 0 | V75: 0 | W75: 0
B76: -6 | H76: Alaska | I76: Shell | J76: 2015-12-31 | K76: 2016-04-30 | L76: 593000 | M76: 561000
B77: -6 | H77: Alaska | I77: Shell | J77: 2016-04-30 | K77: 2016-06-28 | L77: 561000 | M77: 593000
B78: -6 | H78: Alaska | I78: Shell | J78: 2016-06-28 | K78: 2016-10-25 | L78: 624000 | M78: 561000
B79: -6 | H79: Alaska | I79: Shell | J79: 2016-10-25 | K79: 2016-12-31 | L79: 561000 | M79: 624000
B80: -6 | H80: Alaska | I80: Shell | J80: 2016-12-31 | K80: 2017-06-30 | L80: 593000 | M80: 561000
M82: Total Estimated Days Out of Service | O82: =SUM(O64:O80) -> 88.36458333 | P82: =SUM(P64:P80) -> 17 | Q82: =SUM(Q64:Q80) -> 20 | R82: =SUM(R64:R80) -> 72 | T82: =SUM(T64:T80) -> 0 | U82: =SUM(U64:U80) -> 0 | V82: =SUM(V64:V80) -> 0 | W82: =SUM(W64:W80) -> 0
M83: Estimated Average Contract Dayrate(5) | O83: 469000 | P83: 466000 | Q83: 463000 | R83: 396000 | T83: 438000 | U83: 428000 | V83: 467000 | W83: 420000
A85: Deepwater (6)
A87: Deepwater Navigator | B87: (7), (8), (15) | C87: ship | D87: « | E87: 1971/2000 | F87: 7200 | G87: 25000 | H87: Brazil | I87: Petrobras | J87: 2011-05-01 | K87: 2016-02-20 | L87: 361000 | M87: 190000 | O87: 0 | P87: 0 | Q87: 0 | R87: 0 | T87: 0 | U87: 0 | V87: 0 | W87: 0
A88: Transocean Marianas | C88: semi | E88: 1979/1998 | F88: 7000 | G88: 30000 | K88: Idle | O88: 0 | P88: 0 | Q88: 0 | R88: 0 | T88: 0 | U88: 0 | V88: 0 | W88: 0
A89: Sedco 706 | B89: (6), (7), (8) | C89: semi | D89: « | E89: 1976/1994/ 2008 | F89: 6500 | G89: 25000 | H89: Brazil | I89: Petrobras | J89: 2014-05-01 | K89: 2016-09-01 | L89: 277000 | M89: 361000 | O89: 0 | P89: 55.5 | Q89: 3 | R89: 0 | T89: 0 | U89: 0 | V89: 0 | W89: 0
A90: Sedco 702 | B90: (6), (7) | C90: semi | D90: « | E90: 1973/2007 | F90: 6500 | G90: 25000 | H90: Nigeria | I90: Shell | J90: 2012-09-01 | K90: 2016-02-01 | L90: 461000 | M90: 357000 | O90: 0 | P90: 0 | Q90: 0 | R90: 0 | T90: 0 | U90: 0 | V90: 0 | W90: 0
A91: Jack Bates | C91: semi | E91: 1986/1997 | F91: 5400 | G91: 30000 | H91: Australia | I91: Inpex | J91: 2015-02-01 | K91: 2016-02-18 | L91: 370000 | M91: 420000 | O91: 0 | P91: 0 | Q91: 0 | R91: 0 | T91: 0 | U91: 0 | V91: 0 | W91: 0
A92: M.G. Hulme, Jr. | C92: semi | E92: 1983/1996 | F92: 5000 | G92: 25000 | K92: Idle | O92: 0 | P92: 0 | Q92: 0 | R92: 0 | T92: 0 | U92: 0 | V92: 0 | W92: 0
M94: Total Estimated Days Out of Service | O94: =SUM(O87:O92) -> 0 | P94: =SUM(P87:P92) -> 55.5 | Q94: =SUM(Q87:Q92) -> 3 | R94: =SUM(R87:R92) -> 0 | T94: =SUM(T87:T92) -> 0 | U94: =SUM(U87:U92) -> 0 | V94: =SUM(V87:V92) -> 0 | W94: =SUM(W87:W92) -> 0
M95: Estimated Average Contract Dayrate(5) | O95: 348000 | P95: 361000 | Q95: 357000 | R95: 367000 | T95: 350000 | U95: 277000 | V95: 277000 | W95: 277000
A97: Midwater Floaters (12)
A99: Transocean Driller | B99: (7), (8) | C99: semi | E99: 1991 | F99: 3000 | G99: 25000 | H99: Brazil | I99: Petrobras | J99: 2010-07-01 | K99: 2016-07-01 | L99: 256000 | M99: 116000 | O99: 0 | P99: 0 | Q99: 0 | R99: 0 | T99: 0 | U99: 0 | V99: 0 | W99: 0
A100: GSF Rig 140 | C100: semi | E100: 1983 | F100: 2800 | G100: 25000 | K100: Idle | O100: 0 | P100: 0 | Q100: 0 | R100: 0 | T100: 0 | U100: 0 | V100: 0 | W100: 0
A101: Sedco 711 | C101: semi | E101: 1982 | F101: 1800 | G101: 25000 | H101: UKNS | I101: Talisman | J101: 2015-06-01 | K101: 2015-12-01 | L101: 366000 | M101: 361000 | O101: 0 | P101: 0 | Q101: 0 | R101: 0 | T101: 0 | U101: 0 | V101: 0 | W101: 0
A102: Transocean John Shaw | B102: -7 | C102: semi | E102: 1982 | F102: 1800 | G102: 25000 | H102: UKNS | I102: Taqa | J102: 2015-01-28 | K102: 2016-01-28 | L102: 414000 | M102: 353000 | O102: 0 | P102: 0 | Q102: 0 | R102: 0 | T102: 0 | U102: 0 | V102: 0 | W102: 0
A103: Sedco 712 | C103: semi | E103: 1983 | F103: 1600 | G103: 25000 | H103: UKNS | I103: Talisman | J103: 2015-04-01 | K103: 2015-10-01 | L103: 397000 | M103: 391000 | O103: 25.42708333 | P103: 0 | Q103: 0 | R103: 0 | T103: 0 | U103: 0 | V103: 0 | W103: 0
H104: UKNS | I104: Talisman | J104: 2015-10-01 | K104: 2016-04-01 | L104: 403000 | M104: 397000
H105: UKNS | I105: Talisman | J105: 2016-04-01 | K105: 2016-10-01 | L105: 409000 | M105: 403000
A106: Sedco 714 | B106: -7 | C106: semi | E106: 1983/1997 | F106: 1600 | G106: 25000 | H106: UKNS | I106: Total | J106: 2015-09-01 | K106: 2016-03-01 | L106: 421000 | M106: 433000 | O106: 0 | P106: 0 | Q106: 0 | R106: 0 | T106: 0 | U106: 0 | V106: 0 | W106: 0
A107: GSF Grand Banks | C107: semi | E107: 1984 | F107: 1500 | G107: 25000 | K107: Idle | O107: 0 | P107: 0 | Q107: 0 | R107: 0 | T107: 0 | U107: 0 | V107: 0 | W107: 0
A108: Actinia | C108: semi | E108: 1982 | F108: 1500 | G108: 25000 | K108: Idle | O108: 0 | P108: 0 | Q108: 0 | R108: 0 | T108: 0 | U108: 0 | V108: 0 | W108: 0
A109: Transocean Winner | B109: (6), (7) | C109: semi | E109: 1983 | F109: 1500 | G109: 25000 | H109: NNS | I109: Marathon | J109: 2015-08-15 | K109: 2016-07-01 | L109: 498000 | M109: 419000 | O109: 0 | P109: 0 | Q109: 0 | R109: 0 | T109: 0 | U109: 0 | V109: 0 | W109: 0
A110: Transocean Searcher | C110: semi | E110: 1983/1988 | F110: 1500 | G110: 25000 | K110: Stacked | O110: 0 | P110: 0 | Q110: 0 | R110: 0 | T110: 0 | U110: 0 | V110: 0 | W110: 0
A111: Transocean Prospect | C111: semi | E111: 1983/1992 | F111: 1500 | G111: 25000 | K111: Stacked | O111: 0 | P111: 0 | Q111: 0 | R111: 0 | T111: 0 | U111: 0 | V111: 0 | W111: 0
A112: Sedco 704 | C112: semi | E112: 1974/1993 | F112: 1000 | G112: 25000 | H112: UKNS | I112: Maersk | J112: 2015-06-30 | K112: 2016-02-01 | L112: 373000 | M112: 362000 | O112: 0 | P112: 0 | Q112: 0 | R112: 0 | T112: 0 | U112: 0 | V112: 0 | W112: 0
H113: UKNS | I113: Maersk | J113: =K112 -> 2016-02-01 | K113: 2016-04-23 | L113: 219000 | M113: =+L112 -> 373000
M115: Total Estimated Days Out of Service | O115: =SUM(O99:O112) -> 25.42708333 | P115: =SUM(P99:P112) -> 0 | Q115: =SUM(Q99:Q112) -> 0 | R115: =SUM(R99:R112) -> 0 | T115: =SUM(T99:T112) -> 0 | U115: =SUM(U99:U112) -> 0 | V115: =SUM(V99:V112) -> 0 | W115: =SUM(W99:W112) -> 0
M116: Estimated Average Contract Dayrate(5) | O116: 351000 | P116: 350000 | Q116: 377000 | R116: 389000 | T116: 385000 | U116: 381000 | V116: 433000 | W116: 409000
A118: High Specification Jackups (10)
A120: GSF Constellation I | B120: -8 | E120: 2003 | F120: 400 | G120: 30000 | H120: Indonesia | I120: Total | J120: 2012-09-01 | K120: 2016-01-01 | L120: 150000 | M120: 140000 | O120: 0 | P120: 0 | Q120: 0 | R120: 0 | T120: 8 | U120: 0 | V120: 0 | W120: 0
H121: UAE | I121: Bunduq | J121: 2016-04-28 | K121: 2016-12-27 | L121: 104000 | M121: =L120 -> 150000
A122: GSF Constellation II | B122: -6 | E122: 2004 | F122: 400 | G122: 30000 | H122: Gabon | I122: Vaalco | J122: 2014-10-31 | K122: 2016-07-01 | L122: 170000 | M122: 165000 | O122: 0 | P122: 0 | Q122: 0 | R122: 0 | T122: 0 | U122: 0 | V122: 0 | W122: 0
A123: GSF Galaxy I | B123: -7 | E123: 1991/2001 | F123: 400 | G123: 30000 | H123: UKNS | I123: Total | J123: 2015-05-01 | K123: 2015-11-30 | L123: 219000 | M123: 208000 | O123: 0 | P123: 0 | Q123: 0 | R123: 0 | T123: 0 | U123: 0 | V123: 0 | W123: 0
B124: -7 | H124: UKNS | I124: Total | J124: 2015-11-30 | K124: 2016-05-30 | L124: 223000 | M124: =L123 -> 219000
B125: -7 | H125: UKNS | I125: Total | J125: 2016-05-30 | K125: 2016-11-30 | L125: 227000 | M125: 223000
B126: -7 | H126: UKNS | I126: Total | J126: 2016-11-30 | K126: 2017-05-30 | L126: 230000 | M126: 227000
A127: GSF Galaxy II | E127: 1998 | F127: 400 | G127: 30000 | K127: Stacked | O127: 0 | P127: 0 | Q127: 0 | R127: 0 | T127: 0 | U127: 0 | V127: 0 | W127: 0
A128: GSF Galaxy III | E128: 1999 | F128: 400 | G128: 30000 | K128: Stacked | O128: 0 | P128: 0 | Q128: 0 | R128: 0 | T128: 0 | U128: 0 | V128: 0 | W128: 0
A129: Transocean Honor | B129: (6), (13) | E129: 2012 | F129: 400 | G129: 30000 | H129: Angola | I129: Chevron | J129: 2015-04-30 | K129: 2016-04-30 | L129: 194000 | M129: 155000 | O129: 0 | P129: 0 | Q129: 0 | R129: 0 | T129: 0 | U129: 0 | V129: 0 | W129: 0
A130: GSF Monarch | E130: 1986 | F130: 350 | G130: 30000 | K130: Stacked | O130: 0 | P130: 0 | Q130: 0 | R130: 0 | T130: 0 | U130: 0 | V130: 0 | W130: 0
A131: Transocean Andaman | E131: 2013 | F131: 350 | G131: 35000 | H131: Thailand | I131: Chevron | J131: 2013-05-17 | K131: 2016-05-24 | L131: 150000 | M131: N/A | O131: 0 | P131: 0 | Q131: 0 | R131: 0 | T131: 0 | U131: 0 | V131: 0 | W131: 0
H132: Thailand | I132: Chevron | J132: 2016-05-24 | K132: 2017-05-15 | L132: 115000 | M132: 150000
A133: Transocean Siam Driller | E133: 2013 | F133: 350 | G133: 35000 | H133: Thailand | I133: Chevron | J133: 2013-03-27 | K133: 2018-03-26 | L133: 140000 | M133: N/A | O133: 0 | P133: 0 | Q133: 0 | R133: 0 | T133: 0 | U133: 0 | V133: 0 | W133: 0
A134: Transocean Ao Thai | E134: 2013 | F134: 350 | G134: 35000 | H134: Thailand | I134: Chevron | J134: 2013-10-10 | K134: 2018-10-17 | L134: 139000 | M134: N/A | O134: 0 | P134: 0 | Q134: 0 | R134: 0 | T134: 0 | U134: 0 | V134: 3 | W134: 0
M135: Total Estimated Days Out of Service | O135: =SUM(O120:O134) -> 0 | P135: =SUM(P120:P134) -> 0 | Q135: =SUM(Q120:Q134) -> 0 | R135: =SUM(R120:R134) -> 0 | T135: =SUM(T120:T134) -> 8 | U135: =SUM(U120:U134) -> 0 | V135: =SUM(V120:V134) -> 3 | W135: =SUM(W120:W134) -> 0
M136: Estimated Average Contract Dayrate(5) | O136: 167000 | P136: 166000 | Q136: 166000 | R136: 166000 | T136: 165000 | U136: 154000 | V136: 146000 | W136: 149000
M139: Total Estimated Days Out of Service | O139: =+O135+O115+O82+O94+O59 -> 282.2916667 | P139: =+P135+P115+P82+P94+P59 -> 259.0416667 | Q139: =+Q135+Q115+Q82+Q94+Q59 -> 164 | R139: =+R135+R115+R82+R94+R59 -> 136 | T139: =+T135+T115+T82+T94+T59 -> 22 | U139: =+U135+U115+U82+U94+U59 -> 16 | V139: =+V135+V115+V82+V94+V59 -> 3 | W139: =+W135+W115+W82+W94+W59 -> 0
A142: Fixed-Price Options - See Footnote 10
A146: Ultra-Deepwater
A148: Deepwater Champion | C148: ship | D148: « | E148: 2011 | F148: 12000 | G148: 40000 | H148: USGOM | I148: ExxonMobil | J148: 2016-01-31 | K148: 2016-02-16 | L148: 395000 | M148: 395000
H149: USGOM | I149: ExxonMobil | J149: 2016-02-16 | K149: 2016-03-16 | L149: 395000 | M149: 395000
H150: USGOM | I150: ExxonMobil | J150: 2016-03-16 | K150: 2016-04-16 | L150: 395000 | M150: 395000
H151: USGOM | I151: ExxonMobil | J151: 2016-04-16 | K151: 2016-05-16 | L151: 395000 | M151: 395000
H152: USGOM | I152: ExxonMobil | J152: 2016-05-16 | K152: 2016-06-16 | L152: 395000 | M152: 395000
H153: USGOM | I153: ExxonMobil | J153: 2016-06-16 | K153: 2016-07-16 | L153: 395000 | M153: 395000
H154: USGOM | I154: ExxonMobil | J154: 2016-07-16 | K154: 2016-08-16 | L154: 395000 | M154: 395000
H155: USGOM | I155: ExxonMobil | J155: 2016-08-16 | K155: 2016-09-16 | L155: 395000 | M155: 395000
A156: GSF Development Driller II | B156: -6 | C156: semi | D156: « | E156: 2005 | F156: 7500 | G156: 37500 | H156: Romania | I156: Lukoil | J156: 2016-01-30 | K156: 2016-12-31 | L156: 315000 | M156: 315000
A158: Harsh Environment
A160: Polar Pioneer | B160: -6 | C160: semi | E160: 1985 | F160: 1500 | G160: 25000 | H160: Alaska | I160: Shell | J160: 2017-06-17 | K160: 2017-10-31 | L160: 623000 | M160: 589000
A161: Paul B. Loyd, Jr. | B161: -7 | C161: semi | E161: 1990 | F161: 2000 | G161: 25000 | H161: UKNS | I161: BP | J161: 2017-06-01 | K161: 2017-09-01 | L161: 455000 | M161: 453000
B162: -7 | H162: UKNS | I162: BP | J162: 2017-09-01 | K162: 2018-03-01 | L162: 462000 | M162: =+L161 -> 455000
B163: -7 | H163: UKNS | I163: BP | J163: 2018-03-01 | K163: 2018-06-01 | L163: 469000 | M163: =+L162 -> 462000
A165: High Specification Jackups
A167: GSF Galaxy I | B167: (6), (7) | E167: 1991/2001 | F167: 400 | G167: 30000 | H167: UKNS | I167: Total | J167: 2017-05-28 | K167: 2018-05-27 | L167: 240000 | M167: 231000
B168: (6), (7) | H168: UKNS | I168: Total | J168: 2018-05-27 | K168: 2019-05-27 | L168: 250000 | M168: 240000
A169: Transocean Andaman | E169: 2013 | F169: 350 | G169: 35000 | H169: Thailand | I169: Chevron | J169: 2017-05-15 | K169: 2018-05-15 | L169: 110000 | M169: 115000
A171: Revenue Efficiency
A172: Revenue efficiency is defined as actual contract drilling revenues for the measurement period divided by the maximum revenue calculated for the measurement period, expressed as a percentage. Maximum revenue is defined as the greatest amount of contract drilling revenues the drilling unit could earn for the measurement period, excluding amounts related to incentive provisions. Revenue Efficiency does not apply during Out of Service Days (Shipyard, Mobilizations, Demobilizations, Contract Preparation).
B174: Q2 2015 Actual | C174: Q1 2015 Actual | D174: Q4 2014 Actual | E174: Q3 2014 Actual | F174: Q2 2014 Actual | G174: Q1 2014 Actual | H174: Q4 2013 Actual | I174: Q3 2013 Actual
A175: Ultra-Deepwater Floaters | B175: 0.97 | C175: 0.972 | D175: 0.954 | E175: 0.916 | F175: 0.94 | G175: 0.964 | H175: 0.8995562286 | I175: 0.925
A176: Harsh Environment Floaters | B176: 0.984 | C176: 0.968 | D176: 0.96 | E176: 0.947 | F176: 0.957 | G176: 0.963 | H176: 0.9209016485 | I176: 0.999
A177: Deepwater Floaters | B177: 1.003 | C177: 0.959 | D177: 0.963 | E177: 0.933 | F177: 0.945 | G177: 1.005 | H177: 0.9495099193 | I177: 0.911
A178: Midwater Floaters | B178: 0.953 | C178: 0.914 | D178: 0.93 | E178: 0.922 | F178: 0.97 | G178: 0.911 | H178: 0.9229659201 | I178: 0.953
A179: High-Specification Jackups | B179: 0.986 | C179: 0.993 | D179: 0.99 | E179: 0.97 | F179: 0.973 | G179: 0.945 | H179: 0.971561512 | I179: 0.989
A180: Total Fleet - Continuing Operations | B180: 0.972 | C180: 0.959 | D180: 0.953 | E180: 0.926 | F180: 0.95 | G180: 0.957 | H180: 0.917 | I180: 0.94
A182: Estimated Contract Drilling Revenue can be calculated as: Paid Days on Contract * Average Contract Dayrate * Revenue Efficiency

Sheet Footnotes
B2: =Report!A2 -> Updated: October 26, 2015
B3: =Report!A3 -> Revisions Noted in Bold
B5: Footnotes
B7: (1) | C7: Dates shown are the original service date and the date of the most recent upgrade, if any.
B8: (2) | C8: Estimated Contract Start and Estimated Expiration Dates are calculated as follows: (1) for events estimated to occur between the 1st and 15th of a month, the previous month is reported (i.e. a contract which is estimated to commence on May 4, 2015 will be reported as commencing in April 2015) and (2) for events estimated to occur between the 16th and the end of a month, the actual month is reported (i.e. a contract which is estimated to commence on May 24, 2015 will be reported as commencing in May 2015). Expiration dates represent the company's current estimate of the earliest date the contract for each rig is likely to expire. Some rigs have two or more contracts in continuation, so the last line shows the estimated earliest availability. Many contracts permit the customer to extend the contract.
B9: (3) | C9: Represents the full operating dayrate, although the average dayrate over the term of the contract will be lower and could be substantially lower. Does not reflect incentive programs which are typically based on the rig's operating performance against a performance curve. Please refer to the “Customer Contract Duration, Timing and Dayrates and Risks Associated with Operations” section of the Disclaimers & Definitions for a description of dayrates. This column may not reflect the rate currently being received under the contract as a result of an applicable standby rate or other rate, which typically is less than the contract dayrate.
B10: (4) | C10: The out of service time represents those days where a rig is scheduled to be out of service and not be available to earn an operating dayrate. Please refer to the “Out of Service Days (Shipyards, Mobilizations, Demobilizations, Contract Preparation)” section of the Disclaimers & Definitions for a full description.
B11: (5) | C11: Estimated Average Contract Dayrate is defined as the average contracted full operating dayrate to be earned per revenue earning day. See note (3) for definition of full operating dayrate.
B12: (6) | C12: Reflects the current contracted dayrate which could reflect prior cost escalations, or de-escalations, and could change in the future due to further cost escalations, or de-escalations.
B13: (7) | C13: Reflects the current contracted dayrate which, along with costs, includes a foreign currency component. Changes in the value of the U.S. Dollar relative to certain foreign currencies will result in an adjustment to the dayrate according to the terms of the contract. The dayrate adjustment generally offsets the foreign currency exchange-related change in costs.
B14: (8) | C14: Current contract provides for a bonus incentive opportunity not reflected in the stated current contract dayrate.
B15: (9) | C15: The two drillships on order from Sembcorp Marine's subsidiary, Jurong Shipyard, are expected to be delivered in the second quarter of 2019 and the first quarter of 2020, respectively.
B16: (10) | C16: Fixed price options may be exercised at the customer’s discretion. During periods when dayrates on new contracts are increasing relative to existing contracts, the likelihood of customers’ exercising fixed price options increases. During periods when dayrates on new contracts are decreasing relative to existing contracts, the likelihood of customers’ exercising fixed price options declines.
B17: (11) | C17: The contract is expected to start in the quarter indicated. Factors that could influence the contract start date include shipyard delivery, customer acceptance, and mobilization to operating location, among others.
B18: (12) | C18: The first of five newbuild high-specification jackups contracted to Keppel FELS Limited's shipyard in Singapore is expected to be delivered from the shipyard in the first quarter of 2018 and the remaining four jackups delivered at approximately six-month intervals thereafter.
B19: (13) | C19: The rig is owned by a joint venture in which the company owns less than a 100 percent interest. Dayrate reflects 100 percent of the contract rate.
B20: (14) | C20: The customer may elect to have the operating dayrate for the last five years of the contract fluctuate based on crude oil price with a floor of $458,250 corresponding to a crude oil price of less than or equal to $50 per barrel, and a ceiling of $558,250 corresponding to a crude oil price of $100 per barrel or greater.
B21: (15) | C21: While the customer has the option to add any out of service days to the end of the contract, the Estimated Expiration Date does not reflect any extension due to this option until actually exercised by the customer.
B22: (16) | C22: The rig is owned by Transocean Partners LLC in which the company owns less than a 100% interest. Please refer to Transocean Partners LLC (NYSE: RIGP) Fleet Status Report which can be found at www.transoceanpartners.com.
B23: (17) | C23: Mobilization, customer commissioning and acceptance testing commenced in March 2014. Revenue of approximately $52 million earned from March 2014 to July 2014 will be recognized over the remaining three-year contract period ending in March 2017.
B24: (18) | C24: The dayrate for the last year of the contract will be set three months prior to the third anniversary of the contract commencement date, subject to a floor dayrate of $305,000 and a ceiling dayrate of $365,000, pursuant to the terms of the contract.
B25: (19) | C25: Based on the rig's performance, the dayrate can fluctuate between $445,000 and $495,000.
B26: (20) | C26: Reflects the current contracted dayrate for Australia operations; dayrate will be adjusted to reflect change in location to Myanmar.
B27: (21) | C27: The OMV contract, originally awarded to the Transocean Arctic, has been transferred to the Transocean Spitsbergen.

Sheet Stacked&Idle
A2: =Report!A2 -> Updated: October 26, 2015
A3: =Report!A3 -> Revisions Noted in Bold
A5: Rig Type/Name | B5: Start Date
A6: Stacked Rigs (14)
A8: Discoverer Spirit | B8: 2015-03-15
A9: GSF Jack Ryan | B9: 2015-03-18
A10: Deepwater Discovery | B10: 2015-03-18
A11: Deepwater Pathfinder | B11: 2015-03-18
A12: GSF C.R. Luigs | B12: 2015-06-01
A13: GSF Galaxy III | B13: 2015-07-01
A14: GSF Monarch | B14: 2015-07-02
A15: Discoverer Enterprise | B15: 2015-09-01
A16: Sedco Energy | B16: 2015-09-01
A17: Sedco Express | B17: 2015-09-01
A18: Henry Goodrich | B18: 2015-09-01
A19: Transocean Searcher | B19: 2015-09-01
A20: Transocean Prospect | B20: 2015-09-01
A21: GSF Galaxy II | B21: 2015-09-01
A23: Idle Rigs (8)
A24: Deepwater Frontier | B24: 2015-01-07
A25: M.G. Hulme, Jr. | B25: 2015-04-23
A26: Transocean Marianas | B26: 2015-05-16
A27: Transocean Spitsbergen | B27: 2015-06-07
A28: Actinia | B28: 2015-08-01
A29: Transocean Barents | B29: 2015-09-01
A30: GSF Rig 140 | B30: 2015-09-01
A31: GSF Grand Banks | B31: 2015-10-01
A34: Stacked and Idle rigs detailed above are not currently operating on contract. Start date denotes when rig commences idle or stacked status.
A35: An "Idle" rig is between contracts, readily available for operations, and operating costs are typically at or near normal levels. A "Stacked" rig, on the other hand, is manned by a reduced crew or unmanned and typically has reduced operating costs and is (i) preparing for an extended period of inactivity, (ii) expected to continue to be inactive for an extended period, or (iii) completing a period of extended inactivity. However, stacked rigs will continue to incur operating costs at or above normal operating costs for 30 to 60 days following initiation of stacking.
J178: 2013-06-01
I179: =+J178 -> 2013-06-01 | J179: 2013-09-01

Sheet Disclaimers&Definitions
A3: DISCLAIMERS & DEFINITIONS
